[Event "Titled Tuesday Blitz July 6 2021"]
[White "Tologon tegin, Semetei"]
[Black "Daianu, Cristian-Clement"]
[WhiteFideId "13800574"]
[BlackFideId "1208926"]
[WhiteElo "2224"]
[BlackElo "2133"]
[Result "0-1"]
[Round "07"]
[TimeControl "180+1"]
[Date "2021.07.06"]
[WhiteClock "0:00:47"]
[BlackClock "0:00:35"]

1. d4 {[%clk 0:03:00]}  Nf6 {[%clk 0:02:58]} 2. c4 {[%clk 0:03:00]}  g6 {[%clk 0:02:59]} 3. Nc3 {[%clk 0:03:00]}  d5 {[%clk 0:02:58]} 4. cxd5 {[%clk 0:03:01]}  Nxd5 {[%clk 0:02:59]} 5. e4 {[%clk 0:03:02]}  Nxc3 {[%clk 0:02:59]} 6. bxc3 {[%clk 0:03:03]}  Bg7 {[%clk 0:03:00]} 7. Bc4 {[%clk 0:03:03]}  c5 {[%clk 0:03:01]} 8. Ne2 {[%clk 0:03:03]}  O-O {[%clk 0:03:01]} 9. Be3 {[%clk 0:03:03]}  Nc6 {[%clk 0:03:02]} 10. O-O {[%clk 0:03:02]}  Bg4 {[%clk 0:03:02]} 11. f3 {[%clk 0:03:02]}  Na5 {[%clk 0:03:03]} 12. Bxf7+ {[%clk 0:03:01]}  Rxf7 {[%clk 0:03:01]} 13. fxg4 {[%clk 0:03:02]}  Rxf1+ {[%clk 0:03:00]} 14. Kxf1 {[%clk 0:03:03]}  cxd4 {[%clk 0:03:00]} 15. cxd4 {[%clk 0:03:03]}  e5 {[%clk 0:02:59]} 16. d5 {[%clk 0:02:56]}  Nc4 {[%clk 0:02:55]} 17. Qd3 {[%clk 0:02:51]}  Rc8 {[%clk 0:02:51]} 18. h3 {[%clk 0:02:44]}  b6 {[%clk 0:02:34]} 19. Rc1 {[%clk 0:02:43]}  Nd6 {[%clk 0:02:33]} 20. Kg1 {[%clk 0:02:42]}  Rxc1+ {[%clk 0:02:22]} 21. Bxc1 {[%clk 0:02:42]}  b5 {[%clk 0:02:22]} 22. Nc3 {[%clk 0:02:28]}  Qa5 {[%clk 0:02:15]} 23. Qc2 {[%clk 0:02:20]}  Bf8 {[%clk 0:02:06]} 24. Kh2 {[%clk 0:02:17]}  Qb4 {[%clk 0:01:40]} 25. Qd3 {[%clk 0:01:50]}  Qd4 {[%clk 0:01:35]} 26. Qf3 {[%clk 0:01:42]}  b4 {[%clk 0:01:32]} 27. Ne2 {[%clk 0:01:41]}  Qxe4 {[%clk 0:01:32]} 28. Qf2 {[%clk 0:01:28]}  Qxd5 {[%clk 0:01:20]} 29. Qxa7 {[%clk 0:01:26]}  Qc4 {[%clk 0:01:11]} 30. Ng3 {[%clk 0:01:24]}  Qxc1 {[%clk 0:01:09]} 31. Qa5 {[%clk 0:01:15]}  Qf4 {[%clk 0:01:07]} 32. Qd5+ {[%clk 0:01:14]}  Kh8 {[%clk 0:01:00]} 33. Qa8 {[%clk 0:01:12]}  Kg7 {[%clk 0:00:53]} 34. Qa7+ {[%clk 0:00:59]}  Kg8 {[%clk 0:00:49]} 35. Qa8 {[%clk 0:00:58]}  h5 {[%clk 0:00:43]} 36. gxh5 {[%clk 0:00:58]}  gxh5 {[%clk 0:00:44]} 37. Qd5+ {[%clk 0:00:54]}  Kh7 {[%clk 0:00:41]} 38. Qd3+ {[%clk 0:00:49]}  e4 {[%clk 0:00:40]} 39. Qe2 {[%clk 0:00:48]}  h4 {[%clk 0:00:38]} 40. Qh5+ {[%clk 0:00:49]}  Kg8 {[%clk 0:00:38]} 41. Qg6+ {[%clk 0:00:47]}  Bg7 {[%clk 0:00:39]} 42. Qe6+ {[%clk 0:00:47]}  Kh7 {[%clk 0:00:35]} 0-1


[Site "https://www.chess.com"]

[Event "Titled Tuesday Blitz July 6 2021"]
[White "Vidit, Santosh Gujrathi"]
[Black "Moroni, Luca Jr"]
[WhiteFideId "5029465"]
[BlackFideId "865834"]
[WhiteElo "2735"]
[BlackElo "2491"]
[Result "1/2-1/2"]
[Round "07"]
[TimeControl "180+1"]
[Date "2021.07.06"]
[WhiteClock "0:00:05"]
[BlackClock "0:00:05"]

1. d4 {[%clk 0:03:00]}  g6 {[%clk 0:03:00]} 2. Nf3 {[%clk 0:02:59]}  Bg7 {[%clk 0:03:00]} 3. g3 {[%clk 0:03:00]}  d6 {[%clk 0:03:00]} 4. Bg2 {[%clk 0:03:00]}  Bd7 {[%clk 0:03:00]} 5. O-O {[%clk 0:02:58]}  Qc8 {[%clk 0:03:00]} 6. e4 {[%clk 0:02:57]}  Nc6 {[%clk 0:02:58]} 7. c3 {[%clk 0:02:53]}  Bh3 {[%clk 0:02:55]} 8. Bxh3 {[%clk 0:02:48]}  Qxh3 {[%clk 0:02:56]} 9. Ng5 {[%clk 0:02:48]}  Qd7 {[%clk 0:02:55]} 10. f4 {[%clk 0:02:47]}  h6 {[%clk 0:02:36]} 11. Nf3 {[%clk 0:02:47]}  d5 {[%clk 0:02:29]} 12. e5 {[%clk 0:02:45]}  h5 {[%clk 0:02:27]} 13. b4 {[%clk 0:02:26]}  Nh6 {[%clk 0:02:23]} 14. a4 {[%clk 0:02:26]}  Nf5 {[%clk 0:02:20]} 15. Qe2 {[%clk 0:02:21]}  Nd8 {[%clk 0:01:59]} 16. Kg2 {[%clk 0:02:14]}  Ne6 {[%clk 0:01:58]} 17. Bd2 {[%clk 0:02:03]}  Bh6 {[%clk 0:01:37]} 18. Na3 {[%clk 0:01:58]}  Kf8 {[%clk 0:01:32]} 19. Nc2 {[%clk 0:01:56]}  Kg7 {[%clk 0:01:32]} 20. Nce1 {[%clk 0:01:55]}  b6 {[%clk 0:01:25]} 21. Nd3 {[%clk 0:01:50]}  c5 {[%clk 0:01:25]} 22. bxc5 {[%clk 0:01:29]}  bxc5 {[%clk 0:01:26]} 23. dxc5 {[%clk 0:01:28]}  Rhc8 {[%clk 0:01:24]} 24. Be3 {[%clk 0:01:25]}  Rab8 {[%clk 0:01:23]} 25. Bf2 {[%clk 0:01:19]}  Rb3 {[%clk 0:00:56]} 26. Qc2 {[%clk 0:01:12]}  Rcb8 {[%clk 0:00:55]} 27. Nb4 {[%clk 0:00:50]}  R3xb4 {[%clk 0:00:41]} 28. cxb4 {[%clk 0:00:51]}  Rxb4 {[%clk 0:00:42]} 29. Rfc1 {[%clk 0:00:42]}  d4 {[%clk 0:00:34]} 30. Qe4 {[%clk 0:00:30]}  Rb2 {[%clk 0:00:28]} 31. c6 {[%clk 0:00:30]}  Qc7 {[%clk 0:00:24]} 32. Rc2 {[%clk 0:00:26]}  Rxc2 {[%clk 0:00:20]} 33. Qxc2 {[%clk 0:00:27]}  h4 {[%clk 0:00:19]} 34. Rc1 {[%clk 0:00:26]}  hxg3 {[%clk 0:00:18]} 35. hxg3 {[%clk 0:00:27]}  Bxf4 {[%clk 0:00:19]} 36. gxf4 {[%clk 0:00:26]}  Nxf4+ {[%clk 0:00:20]} 37. Kf1 {[%clk 0:00:25]}  Ne3+ {[%clk 0:00:09]} 38. Bxe3 {[%clk 0:00:24]}  dxe3 {[%clk 0:00:10]} 39. Qe4 {[%clk 0:00:20]}  e2+ {[%clk 0:00:08]} 40. Kf2 {[%clk 0:00:20]}  Qb6+ {[%clk 0:00:08]} 41. Kg3 {[%clk 0:00:14]}  Nh5+ {[%clk 0:00:07]} 42. Kg2 {[%clk 0:00:14]}  Qb2 {[%clk 0:00:06]} 43. Re1 {[%clk 0:00:14]}  Qc3 {[%clk 0:00:05]} 44. Rxe2 {[%clk 0:00:13]}  Qc1 {[%clk 0:00:04]} 45. Rd2 {[%clk 0:00:10]}  g5 {[%clk 0:00:03]} 46. Qe3 {[%clk 0:00:03]}  Nf4+ {[%clk 0:00:03]} 47. Kf2 {[%clk 0:00:03]}  Qh1 {[%clk 0:00:03]} 48. Ne1 {[%clk 0:00:02]}  Qh2+ {[%clk 0:00:03]} 49. Kf3 {[%clk 0:00:02]}  Qh3+ {[%clk 0:00:03]} 50. Ke4 {[%clk 0:00:02]}  Qh1+ {[%clk 0:00:03]} 51. Nf3 {[%clk 0:00:01]}  Ne6 {[%clk 0:00:02]} 52. Kd3 {[%clk 0:00:01]}  g4 {[%clk 0:00:02]} 53. Nd4 {[%clk 0:00:01]}  Qb1+ {[%clk 0:00:02]} 54. Ke2 {[%clk 0:00:01]}  Nc5 {[%clk 0:00:01]} 55. e6 {[%clk 0:00:02]}  f6 {[%clk 0:00:01]} 56. Kf2 {[%clk 0:00:01]}  Qh1 {[%clk 0:00:01]} 57. Ke2 {[%clk 0:00:01]}  Ne4 {[%clk 0:00:02]} 58. Kd3 {[%clk 0:00:01]}  Qf3 {[%clk 0:00:02]} 59. Nxf3 {[%clk 0:00:01]}  Nc5+ {[%clk 0:00:02]} 60. Kc4 {[%clk 0:00:01]}  Nxa4 {[%clk 0:00:03]} 61. Qg5+ {[%clk 0:00:01]}  fxg5 {[%clk 0:00:03]} 62. Nxg5 {[%clk 0:00:02]}  Nb6+ {[%clk 0:00:03]} 63. Kb5 {[%clk 0:00:03]}  Kf6 {[%clk 0:00:04]} 64. c7 {[%clk 0:00:03]}  Kxg5 {[%clk 0:00:04]} 65. Rd8 {[%clk 0:00:03]}  g3 {[%clk 0:00:05]} 66. Rg8+ {[%clk 0:00:03]}  Kf4 {[%clk 0:00:04]} 67. Kc6 {[%clk 0:00:04]}  Kf3 {[%clk 0:00:04]} 68. Rf8+ {[%clk 0:00:04]}  Ke2 {[%clk 0:00:04]} 69. Rg8 {[%clk 0:00:03]}  Kf2 {[%clk 0:00:04]} 70. Rg7 {[%clk 0:00:03]}  g2 {[%clk 0:00:04]} 71. Rf7+ {[%clk 0:00:04]}  Ke2 {[%clk 0:00:04]} 72. Rg7 {[%clk 0:00:04]}  Kf2 {[%clk 0:00:05]} 73. Rf7+ {[%clk 0:00:04]}  Ke2 {[%clk 0:00:05]} 74. Rg7 {[%clk 0:00:05]}  Kf2 {[%clk 0:00:05]} 1/2-1/2


[Site "https://www.chess.com"]

[Event "Titled Tuesday Blitz July 6 2021"]
[White "Vlachos, Anatole"]
[Black "harlem4brew"]
[WhiteFideId "26093189"]
[WhiteElo "2350"]
[BlackElo "2407"]
[Result "1-0"]
[Round "07"]
[TimeControl "180+1"]
[Date "2021.07.06"]
[WhiteClock "0:00:14"]
[BlackClock "0:01:06"]

1. Nf3 {[%clk 0:03:00]}  d5 {[%clk 0:02:59]} 2. g3 {[%clk 0:02:59]}  Nf6 {[%clk 0:02:58]} 3. Bg2 {[%clk 0:03:00]}  c5 {[%clk 0:02:58]} 4. O-O {[%clk 0:03:00]}  Nc6 {[%clk 0:02:58]} 5. d3 {[%clk 0:03:01]}  g6 {[%clk 0:02:56]} 6. Nbd2 {[%clk 0:03:00]}  Bg7 {[%clk 0:02:57]} 7. e4 {[%clk 0:03:01]}  O-O {[%clk 0:02:57]} 8. Re1 {[%clk 0:02:56]}  Bg4 {[%clk 0:02:56]} 9. h3 {[%clk 0:02:55]}  Bxf3 {[%clk 0:02:55]} 10. Qxf3 {[%clk 0:02:56]}  dxe4 {[%clk 0:02:54]} 11. dxe4 {[%clk 0:02:56]}  Nd4 {[%clk 0:02:54]} 12. Qd3 {[%clk 0:02:45]}  e5 {[%clk 0:02:52]} 13. c3 {[%clk 0:02:43]}  Ne6 {[%clk 0:02:51]} 14. Qxd8 {[%clk 0:02:42]}  Rfxd8 {[%clk 0:02:52]} 15. Nc4 {[%clk 0:02:36]}  Ne8 {[%clk 0:02:48]} 16. a4 {[%clk 0:02:34]}  Nd6 {[%clk 0:02:45]} 17. Ne3 {[%clk 0:02:32]}  a6 {[%clk 0:02:42]} 18. a5 {[%clk 0:02:18]}  Rac8 {[%clk 0:02:37]} 19. Nd5 {[%clk 0:02:16]}  Kf8 {[%clk 0:02:31]} 20. h4 {[%clk 0:02:07]}  h6 {[%clk 0:02:29]} 21. h5 {[%clk 0:01:57]}  g5 {[%clk 0:02:27]} 22. Bh3 {[%clk 0:01:57]}  Re8 {[%clk 0:02:25]} 23. f3 {[%clk 0:01:51]}  Kg8 {[%clk 0:02:21]} 24. b3 {[%clk 0:01:44]}  Nb5 {[%clk 0:02:19]} 25. Be3 {[%clk 0:01:40]}  Rc6 {[%clk 0:02:16]} 26. Red1 {[%clk 0:01:27]}  Kf8 {[%clk 0:02:12]} 27. Rac1 {[%clk 0:01:23]}  f6 {[%clk 0:02:06]} 28. Nb6 {[%clk 0:01:19]}  Kf7 {[%clk 0:02:02]} 29. Rd7+ {[%clk 0:01:18]}  Re7 {[%clk 0:02:00]} 30. Rd3 {[%clk 0:01:12]}  Bf8 {[%clk 0:01:57]} 31. Rcd1 {[%clk 0:01:09]}  Ke8 {[%clk 0:01:50]} 32. Nd7 {[%clk 0:00:58]}  Rxd7 {[%clk 0:01:45]} 33. Rxd7 {[%clk 0:00:57]}  Nxc3 {[%clk 0:01:45]} 34. R1d3 {[%clk 0:00:48]}  Ne2+ {[%clk 0:01:44]} 35. Kf2 {[%clk 0:00:48]}  N2d4 {[%clk 0:01:44]} 36. Rxb7 {[%clk 0:00:48]}  c4 {[%clk 0:01:44]} 37. bxc4 {[%clk 0:00:46]}  Rxc4 {[%clk 0:01:44]} 38. Rd2 {[%clk 0:00:31]}  Be7 {[%clk 0:01:39]} 39. Rb6 {[%clk 0:00:30]}  Kf7 {[%clk 0:01:35]} 40. Rxa6 {[%clk 0:00:29]}  Bb4 {[%clk 0:01:32]} 41. Rb2 {[%clk 0:00:20]}  Nc5 {[%clk 0:01:29]} 42. Ra7+ {[%clk 0:00:16]}  Kf8 {[%clk 0:01:28]} 43. Bf1 {[%clk 0:00:14]}  Rc2+ {[%clk 0:01:15]} 44. Rxc2 {[%clk 0:00:14]}  Nxc2 {[%clk 0:01:16]} 45. a6 {[%clk 0:00:13]}  Nxe3 {[%clk 0:01:16]} 46. Kxe3 {[%clk 0:00:14]}  Ne6 {[%clk 0:01:16]} 47. Ra8+ {[%clk 0:00:13]}  Kg7 {[%clk 0:01:15]} 48. a7 {[%clk 0:00:14]}  Bc5+ {[%clk 0:01:14]} 49. Kd3 {[%clk 0:00:14]}  Nf8 {[%clk 0:01:11]} 50. Rxf8 {[%clk 0:00:13]}  Bxa7 {[%clk 0:01:09]} 51. Rd8 {[%clk 0:00:13]}  Bb6 {[%clk 0:01:08]} 52. Rd7+ {[%clk 0:00:14]}  Kg8 {[%clk 0:01:08]} 53. Kc4 {[%clk 0:00:14]}  Bd4 {[%clk 0:01:06]} 54. g4 {[%clk 0:00:13]}  Be3 {[%clk 0:01:05]} 55. Kd5 {[%clk 0:00:14]}  Bb6 {[%clk 0:01:05]} 56. Ke6 {[%clk 0:00:15]}  Bd8 {[%clk 0:01:05]} 57. Rxd8+ {[%clk 0:00:14]}  Kh7 {[%clk 0:01:06]} 58. Rd7+ {[%clk 0:00:14]}  Kg8 {[%clk 0:01:05]} 59. Kxf6 {[%clk 0:00:14]}  Kh8 {[%clk 0:01:05]} 60. Kg6 {[%clk 0:00:13]}  Kg8 {[%clk 0:01:06]} 61. Rd8# {[%clk 0:00:14]} 1-0


[Site "https://www.chess.com"]

[Event "Titled Tuesday Blitz July 6 2021"]
[White "Vlassov, Nikolai"]
[Black "Jodorcovsky Werjivker, Paulo"]
[WhiteFideId "4103360"]
[BlackFideId "3700305"]
[WhiteElo "2407"]
[BlackElo "2142"]
[Result "1-0"]
[Round "07"]
[TimeControl "180+1"]
[Date "2021.07.06"]
[WhiteClock "0:00:10"]
[BlackClock "0:00:21"]

1. e4 {[%clk 0:03:00]}  c5 {[%clk 0:02:59]} 2. c3 {[%clk 0:03:00]}  d5 {[%clk 0:02:58]} 3. exd5 {[%clk 0:02:59]}  Qxd5 {[%clk 0:02:57]} 4. d4 {[%clk 0:02:59]}  Nc6 {[%clk 0:02:55]} 5. Nf3 {[%clk 0:02:59]}  Bg4 {[%clk 0:02:53]} 6. Be2 {[%clk 0:02:54]}  cxd4 {[%clk 0:02:52]} 7. cxd4 {[%clk 0:02:52]}  e6 {[%clk 0:02:52]} 8. a3 {[%clk 0:02:52]}  Nf6 {[%clk 0:02:50]} 9. Nc3 {[%clk 0:02:52]}  Qa5 {[%clk 0:02:50]} 10. O-O {[%clk 0:02:50]}  Be7 {[%clk 0:02:49]} 11. h3 {[%clk 0:02:50]}  Bh5 {[%clk 0:02:48]} 12. Be3 {[%clk 0:02:41]}  O-O {[%clk 0:02:43]} 13. b4 {[%clk 0:02:40]}  Qd8 {[%clk 0:02:41]} 14. Qd2 {[%clk 0:02:28]}  a6 {[%clk 0:02:36]} 15. Rad1 {[%clk 0:02:27]}  Rc8 {[%clk 0:02:35]} 16. d5 {[%clk 0:02:22]}  exd5 {[%clk 0:02:34]} 17. Nxd5 {[%clk 0:02:22]}  Nxd5 {[%clk 0:02:33]} 18. Qxd5 {[%clk 0:02:23]}  Qxd5 {[%clk 0:02:32]} 19. Rxd5 {[%clk 0:02:23]}  Bg6 {[%clk 0:02:28]} 20. Rfd1 {[%clk 0:02:23]}  Rfd8 {[%clk 0:02:27]} 21. Bb6 {[%clk 0:02:14]}  Rxd5 {[%clk 0:01:56]} 22. Rxd5 {[%clk 0:02:14]}  Nb8 {[%clk 0:01:49]} 23. Ne5 {[%clk 0:02:04]}  Be4 {[%clk 0:01:47]} 24. Rd4 {[%clk 0:02:03]}  Bc6 {[%clk 0:01:44]} 25. Nxc6 {[%clk 0:02:00]}  Rxc6 {[%clk 0:01:44]} 26. Bd8 {[%clk 0:01:41]}  Rd6 {[%clk 0:01:40]} 27. Re4 {[%clk 0:01:22]}  Rxd8 {[%clk 0:01:27]} 28. Rxe7 {[%clk 0:01:22]}  b5 {[%clk 0:01:24]} 29. Bf3 {[%clk 0:01:06]}  Kf8 {[%clk 0:01:24]} 30. Ra7 {[%clk 0:00:58]}  g6 {[%clk 0:01:11]} 31. h4 {[%clk 0:00:58]}  f5 {[%clk 0:00:45]} 32. Rxh7 {[%clk 0:00:56]}  Kg8 {[%clk 0:00:42]} 33. Rb7 {[%clk 0:00:52]}  Nd7 {[%clk 0:00:40]} 34. Ra7 {[%clk 0:00:42]}  Ne5 {[%clk 0:00:39]} 35. Rxa6 {[%clk 0:00:41]}  Nxf3+ {[%clk 0:00:39]} 36. gxf3 {[%clk 0:00:41]}  Kf7 {[%clk 0:00:34]} 37. Kg2 {[%clk 0:00:40]}  Rd3 {[%clk 0:00:32]} 38. Kg3 {[%clk 0:00:39]}  Rb3 {[%clk 0:00:32]} 39. Kf4 {[%clk 0:00:37]}  Rb2 {[%clk 0:00:29]} 40. Ra5 {[%clk 0:00:34]}  Rb3 {[%clk 0:00:27]} 41. Rxb5 {[%clk 0:00:25]}  Rxa3 {[%clk 0:00:27]} 42. Rb7+ {[%clk 0:00:25]}  Kf6 {[%clk 0:00:26]} 43. Rb6+ {[%clk 0:00:26]}  Kf7 {[%clk 0:00:26]} 44. b5 {[%clk 0:00:20]}  Rb3 {[%clk 0:00:26]} 45. Kg5 {[%clk 0:00:17]}  Rxf3 {[%clk 0:00:25]} 46. Rb7+ {[%clk 0:00:18]}  Kf8 {[%clk 0:00:24]} 47. Kxg6 {[%clk 0:00:18]}  Rxf2 {[%clk 0:00:23]} 48. h5 {[%clk 0:00:18]}  f4 {[%clk 0:00:20]} 49. h6 {[%clk 0:00:19]}  f3 {[%clk 0:00:20]} 50. h7 {[%clk 0:00:19]}  Rh2 {[%clk 0:00:20]} 51. Rb8+ {[%clk 0:00:16]}  Ke7 {[%clk 0:00:21]} 52. h8=Q {[%clk 0:00:16]}  Rg2+ {[%clk 0:00:20]} 53. Kf5 {[%clk 0:00:15]}  f2 {[%clk 0:00:20]} 54. Qe5+ {[%clk 0:00:13]}  Kd7 {[%clk 0:00:20]} 55. Rb7+ {[%clk 0:00:12]}  Kd8 {[%clk 0:00:21]} 56. Qh8+ {[%clk 0:00:10]} 1-0


[Site "https://www.chess.com"]

[Event "Titled Tuesday Blitz July 6 2021"]
[White "Weetik, Vjacheslav"]
[Black "Zong, Davis"]
[WhiteFideId "4153472"]
[BlackFideId "30903955"]
[WhiteElo "2469"]
[BlackElo "2437"]
[Result "1-0"]
[Round "07"]
[TimeControl "180+1"]
[Date "2021.07.06"]
[WhiteClock "0:00:06"]
[BlackClock "0:00:09"]

1. e4 {[%clk 0:02:55]}  e5 {[%clk 0:03:00]} 2. Nf3 {[%clk 0:02:53]}  Nc6 {[%clk 0:03:00]} 3. Nc3 {[%clk 0:02:53]}  Nf6 {[%clk 0:03:00]} 4. Bb5 {[%clk 0:02:53]}  Bc5 {[%clk 0:02:57]} 5. Nxe5 {[%clk 0:02:52]}  Nxe5 {[%clk 0:02:57]} 6. d4 {[%clk 0:02:53]}  Bd6 {[%clk 0:02:55]} 7. f4 {[%clk 0:02:52]}  Neg4 {[%clk 0:02:54]} 8. e5 {[%clk 0:02:52]}  Bb4 {[%clk 0:02:52]} 9. O-O {[%clk 0:02:52]}  c6 {[%clk 0:02:48]} 10. Bd3 {[%clk 0:02:23]}  O-O {[%clk 0:02:47]} 11. exf6 {[%clk 0:02:10]}  Nxf6 {[%clk 0:02:46]} 12. f5 {[%clk 0:01:55]}  d5 {[%clk 0:02:42]} 13. Bg5 {[%clk 0:01:54]}  Qd6 {[%clk 0:02:32]} 14. Qf3 {[%clk 0:01:51]}  Re8 {[%clk 0:02:25]} 15. Rae1 {[%clk 0:01:45]}  Bd7 {[%clk 0:02:25]} 16. Bf4 {[%clk 0:01:43]}  Qf8 {[%clk 0:02:23]} 17. Be5 {[%clk 0:01:42]}  Kh8 {[%clk 0:02:14]} 18. Kh1 {[%clk 0:01:32]}  a5 {[%clk 0:01:47]} 19. Re3 {[%clk 0:01:31]}  Bxc3 {[%clk 0:01:39]} 20. bxc3 {[%clk 0:01:31]}  Ne4 {[%clk 0:01:39]} 21. f6 {[%clk 0:01:20]}  gxf6 {[%clk 0:01:32]} 22. Rxe4 {[%clk 0:00:51]}  fxe5 {[%clk 0:01:16]} 23. Rxe5 {[%clk 0:00:46]}  Rxe5 {[%clk 0:01:16]} 24. dxe5 {[%clk 0:00:44]}  Be6 {[%clk 0:01:13]} 25. Qh5 {[%clk 0:00:39]}  Qg7 {[%clk 0:01:03]} 26. Rf6 {[%clk 0:00:28]}  Rg8 {[%clk 0:01:00]} 27. g3 {[%clk 0:00:25]}  Bg4 {[%clk 0:00:38]} 28. Qh4 {[%clk 0:00:14]}  h5 {[%clk 0:00:20]} 29. h3 {[%clk 0:00:14]}  Bd1 {[%clk 0:00:08]} 30. Qf4 {[%clk 0:00:14]}  Rf8 {[%clk 0:00:01]} 31. Kh2 {[%clk 0:00:07]}  c5 {[%clk 0:00:01]} 32. Rh6+ {[%clk 0:00:06]}  Kg8 {[%clk 0:00:01]} 33. Bh7+ {[%clk 0:00:04]}  Kh8 {[%clk 0:00:02]} 34. Bf5+ {[%clk 0:00:04]}  Kg8 {[%clk 0:00:02]} 35. e6 {[%clk 0:00:03]}  fxe6 {[%clk 0:00:02]} 36. Bxe6+ {[%clk 0:00:03]}  Rf7 {[%clk 0:00:02]} 37. Bxf7+ {[%clk 0:00:03]}  Qxf7 {[%clk 0:00:03]} 38. Rh8+ {[%clk 0:00:03]}  Kxh8 {[%clk 0:00:03]} 39. Qxf7 {[%clk 0:00:03]}  d4 {[%clk 0:00:04]} 40. Qf8+ {[%clk 0:00:03]}  Kh7 {[%clk 0:00:05]} 41. cxd4 {[%clk 0:00:04]}  cxd4 {[%clk 0:00:05]} 42. Qf5+ {[%clk 0:00:04]}  Kg7 {[%clk 0:00:05]} 43. Qe5+ {[%clk 0:00:05]}  Kf7 {[%clk 0:00:05]} 44. Qxd4 {[%clk 0:00:06]}  Kg6 {[%clk 0:00:05]} 45. Qxd1 {[%clk 0:00:05]}  Kf7 {[%clk 0:00:06]} 46. Qd5+ {[%clk 0:00:05]}  Kg7 {[%clk 0:00:07]} 47. Qxa5 {[%clk 0:00:05]}  Kg6 {[%clk 0:00:08]} 48. Qb6+ {[%clk 0:00:05]}  Kg7 {[%clk 0:00:08]} 49. Qxb7+ {[%clk 0:00:06]}  Kg6 {[%clk 0:00:09]} 50. Qf3 {[%clk 0:00:06]} 1-0


[Site "https://www.chess.com"]

[Event "Titled Tuesday Blitz July 6 2021"]
[White "Yandarbiev, Ruslan"]
[Black "Hryshchenko, Kamila"]
[WhiteFideId "4115023"]
[BlackFideId "14147491"]
[WhiteElo "2114"]
[BlackElo "1966"]
[Result "1-0"]
[Round "07"]
[TimeControl "180+1"]
[Date "2021.07.06"]
[WhiteClock "0:00:46"]
[BlackClock "0:00:03"]

1. e4 {[%clk 0:03:00]}  g6 {[%clk 0:02:15]} 2. d4 {[%clk 0:03:00]}  Bg7 {[%clk 0:02:16]} 3. Nc3 {[%clk 0:02:59]}  d6 {[%clk 0:02:17]} 4. Nf3 {[%clk 0:03:00]}  Nf6 {[%clk 0:02:17]} 5. Bc4 {[%clk 0:03:00]}  O-O {[%clk 0:02:17]} 6. Qe2 {[%clk 0:03:01]}  Nc6 {[%clk 0:02:18]} 7. e5 {[%clk 0:03:01]}  Ne8 {[%clk 0:01:34]} 8. Bf4 {[%clk 0:03:00]}  a6 {[%clk 0:01:32]} 9. O-O-O {[%clk 0:02:59]}  b5 {[%clk 0:01:28]} 10. Bd5 {[%clk 0:02:57]}  Bb7 {[%clk 0:01:26]} 11. Qe4 {[%clk 0:02:51]}  e6 {[%clk 0:01:04]} 12. Bxc6 {[%clk 0:02:49]}  d5 {[%clk 0:01:03]} 13. Bxd5 {[%clk 0:02:34]}  exd5 {[%clk 0:01:02]} 14. Qe3 {[%clk 0:02:34]}  c6 {[%clk 0:00:55]} 15. Bh6 {[%clk 0:02:34]}  Nc7 {[%clk 0:00:54]} 16. h4 {[%clk 0:02:34]}  Ne6 {[%clk 0:00:53]} 17. h5 {[%clk 0:02:34]}  Bxh6 {[%clk 0:00:36]} 18. Qxh6 {[%clk 0:02:33]}  g5 {[%clk 0:00:37]} 19. Ne2 {[%clk 0:01:59]}  g4 {[%clk 0:00:24]} 20. Nh4 {[%clk 0:01:51]}  Qg5+ {[%clk 0:00:23]} 21. Qxg5+ {[%clk 0:01:50]}  Nxg5 {[%clk 0:00:24]} 22. Nf5 {[%clk 0:01:49]}  f6 {[%clk 0:00:17]} 23. Nh6+ {[%clk 0:01:45]}  Kg7 {[%clk 0:00:16]} 24. Nxg4 {[%clk 0:01:46]}  fxe5 {[%clk 0:00:14]} 25. dxe5 {[%clk 0:01:46]}  Ne4 {[%clk 0:00:13]} 26. f3 {[%clk 0:01:45]}  Nc5 {[%clk 0:00:12]} 27. Nd4 {[%clk 0:01:40]}  Rae8 {[%clk 0:00:10]} 28. Rde1 {[%clk 0:01:38]}  Bc8 {[%clk 0:00:10]} 29. h6+ {[%clk 0:01:36]}  Kh8 {[%clk 0:00:09]} 30. Nf6 {[%clk 0:01:33]}  Re7 {[%clk 0:00:05]} 31. Nxc6 {[%clk 0:01:30]}  Rc7 {[%clk 0:00:04]} 32. Nb4 {[%clk 0:01:24]}  a5 {[%clk 0:00:04]} 33. Nbxd5 {[%clk 0:01:23]}  Nd3+ {[%clk 0:00:04]} 34. Kb1 {[%clk 0:01:19]}  Nxe1 {[%clk 0:00:05]} 35. Nxc7 {[%clk 0:01:18]}  Nxg2 {[%clk 0:00:05]} 36. Rg1 {[%clk 0:01:13]}  Nf4 {[%clk 0:00:05]} 37. Rg7 {[%clk 0:01:10]}  Bf5 {[%clk 0:00:05]} 38. Nxb5 {[%clk 0:00:58]}  Rc8 {[%clk 0:00:04]} 39. Nd4 {[%clk 0:00:58]}  Bg6 {[%clk 0:00:03]} 40. e6 {[%clk 0:00:58]}  Nxe6 {[%clk 0:00:02]} 41. Nxe6 {[%clk 0:00:58]}  Bxc2+ {[%clk 0:00:02]} 42. Ka1 {[%clk 0:00:57]}  Bf5 {[%clk 0:00:02]} 43. b3 {[%clk 0:00:49]}  Rc1+ {[%clk 0:00:02]} 44. Kb2 {[%clk 0:00:49]}  Rc2+ {[%clk 0:00:03]} 45. Ka3 {[%clk 0:00:49]}  Rc8 {[%clk 0:00:03]} 46. Ng5 {[%clk 0:00:47]}  Ra8 {[%clk 0:00:03]} 47. Ngxh7 {[%clk 0:00:47]}  Bxh7 {[%clk 0:00:03]} 48. Rxh7# {[%clk 0:00:46]} 1-0


[Site "https://www.chess.com"]